bitfinex/quotes_SOLUSD_20250718
["timestamp","ask_amount","ask_price","bid_price","bid_amount"]
[1752845136334,0.72000001,179.63,179.61,5.56761872]
[1752845136545,0.72000001,179.63,179.61,16.94755706]
[1752845136837,0.72000001,179.63,179.61,5.56761872]
[1752845137008,0.72000001,179.63,179.62,11.37993834]
[1752845137518,1e-08,179.63,179.62,16.9472471]
[1752845140927,0.72000001,179.63,179.62,16.9472471]
[1752845141241,1e-08,179.63,179.62,16.9472471]
[1752845141951,1e-08,179.63,179.62,17.5772471]
[1752845144428,1e-08,179.63,179.62,6.19730876]
[1752845144618,1e-08,179.63,179.62,17.5772471]
[1752845145634,1e-08,179.63,179.62,16.9472471]
[1752845147029,1e-08,179.63,179.62,17.5772471]
[1752845149328,1e-08,179.63,179.62,5.56730876]
[1752845149528,1e-08,179.63,179.62,16.9472471]
[1752845149736,0.72000001,179.63,179.62,16.9472471]
[1752845150344,0.72000001,179.63,179.62,5.56730876]
[1752845150549,0.72000001,179.63,179.61,5.56760269]
[1752845150728,0.72,179.62,179.61,16.94754103]
[1752845150930,0.72,179.62,179.61,12.6677669]
[1752845151242,1e-08,179.63,179.61,12.6677669]
[1752845151443,1e-08,179.63,179.62,7.10016421]
[1752845151947,1e-08,179.63,179.62,12.66747297]
[1752845152438,0.72000001,179.63,179.6,5.56792873]
[1752845152747,0.72,179.62,179.61,7.10016421]
[1752845152959,0.72,179.62,179.61,11.36088349]
[1752845153658,1e-08,179.63,179.61,11.36088349]
[1752845153862,1e-08,179.63,179.62,11.36088349]
[1752845154429,0.71000001,179.63,179.62,11.36088349]
[1752845154931,0.71000001,179.63,179.59,5.56823876]
[1752845155154,0.71,179.62,179.61,11.36088349]
[1752845156664,0.71,179.62,179.59,5.56795768]
[1752845156955,11.36088349,179.6,179.58,0.03]
[1752845157458,6.27736609,179.62,179.58,0.03]
[1752845157459,0.71,179.59,179.58,0.03]
[1752845158937,11.36088349,179.61,179.58,0.03]
[1752845158938,0.71,179.61,179.58,0.03]
[1752845159134,0.71,179.59,179.58,0.03]
[1752845160959,17.63912225,179.59,179.58,0.03]
[1752845161145,12.07088349,179.59,179.58,0.03]
[1752845161345,0.71,179.59,179.58,0.03]
[1752845162762,55.88,179.62,179.58,11.39088349]
[1752845162945,0.71,179.61,179.58,0.03]
[1752845163549,0.71,179.6,179.58,0.03]
[1752845163749,0.71,179.61,179.58,11.39088349]
[1752845164151,29.88,179.62,179.6,11.36088349]
[1752845164352,0.71,179.61,179.58,11.39088349]
[1752845164540,0.71,179.61,179.58,16.95935668]
[1752845164748,0.71000001,179.63,179.6,11.36088349]
[1752845164947,0.71000001,179.63,179.58,5.59847319]
[1752845164948,0.71000001,179.63,179.62,11.36088349]
[1752845165176,0.71000001,179.63,179.58,6.22847319]
[1752845165177,0.71000001,179.63,179.58,5.59847319]
[1752845165384,0.71000001,179.63,179.59,11.36088349]
[1752845166171,0.71000001,179.63,179.59,16.92896546]
[1752845166356,0.71000001,179.63,179.59,11.36088349]
[1752845167468,6.27703903,179.63,179.59,11.36088349]
[1752845167664,0.71,179.62,179.59,16.9290989]
[1752845168176,0.71,179.61,179.59,16.9290989]
[1752845168757,0.71,179.61,179.59,11.36088349]
[1752845169249,1e-08,179.63,179.6,11.36088349]
[1752845169456,0.71,179.62,179.6,11.36088349]
[1752845169686,0.71,179.62,179.59,5.56811581]
[1752845169858,0.71,179.61,179.6,11.36088349]
[1752845170054,0.71,179.61,179.58,5.59844091]
[1752845170383,0.71,179.61,179.6,11.36088349]
[1752845170678,1e-08,179.63,179.6,11.36088349]
[1752845170874,0.71,179.62,179.6,16.92874974]
[1752845171179,1e-08,179.63,179.61,11.36088349]
[1752845171488,0.71000001,179.63,179.61,11.36088349]
[1752845171979,1e-08,179.63,179.62,11.36088349]
[1752845172160,1e-08,179.63,179.6,5.56786625]
[1752845172368,1e-08,179.63,179.62,11.36088349]
[1752845173177,1e-08,179.63,179.62,7.09909055]
[1752845173382,1e-08,179.63,179.62,12.66639931]
[1752845173674,1e-08,179.63,179.62,5.56730876]
[1752845173980,1e-08,179.63,179.62,12.66639931]
[1752845174497,0.71000001,179.63,179.62,7.09909055]
[1752845175274,1e-08,179.63,179.62,7.09909055]
[1752845175576,1e-08,179.63,179.62,12.66639931]
[1752845175784,1e-08,179.63,179.62,13.29639931]
[1752845176165,1e-08,179.63,179.62,5.56730876]
[1752845176394,0.71000001,179.63,179.61,5.56753573]
[1752845176685,0.71000001,179.63,179.61,12.66662628]
[1752845177169,0.71000001,179.63,179.58,0.03]
[1752845177372,0.71,179.62,179.59,7.09909055]
[1752845177568,1e-08,179.63,179.59,7.09909055]
[1752845177766,0.71,179.61,179.59,7.09909055]
[1752845178183,0.71000001,179.63,179.6,7.09909055]
[1752845178878,0.71,179.62,179.61,7.09909055]
[1752845179079,0.71,179.62,179.6,7.09909055]
[1752845179579,1e-08,179.63,179.61,7.09909055]
[1752845180292,1e-08,179.63,179.62,7.09909055]
[1752845180458,1e-08,179.63,179.62,8.28582142]
[1752845181181,1e-08,179.63,179.62,7.65582142]
[1752845181378,1e-08,179.63,179.6,6.12456203]
[1752845181786,1e-08,179.63,179.62,7.09909055]
[1752845182560,1e-08,179.63,179.62,5.56730876]
[1752845182769,1e-08,179.63,179.62,12.66639931]
[1752845183282,1e-08,179.63,179.62,7.09909055]
[1752845183786,0.68000001,179.63,179.62,7.09909055]
[1752845184357,1e-08,179.63,179.62,7.09909055]
[1752845184564,1e-08,179.63,179.62,7.72909055]
[1752845185090,1e-08,179.63,179.62,13.29639931]
[1752845187983,1e-08,179.64,179.62,39.29639931]
[1752845188164,1e-08,179.64,179.63,7.65579043]
[1752845188366,1e-08,179.64,179.63,8.28579043]
[1752845189464,1e-08,179.64,179.63,13.22278926]
[1752845190490,1e-08,179.64,179.63,13.85278926]
[1752845191287,1e-08,179.64,179.63,13.22278926]
[1752845192689,1e-08,179.64,179.63,13.85278926]
[1752845193073,1e-08,179.64,179.63,13.22278926]
[1752845197474,1e-08,179.64,179.63,13.85278926]
[1752845198791,1e-08,179.64,179.63,13.22278926]
[1752845199392,1e-08,179.64,179.63,13.85278926]
[1752845203798,0.06,179.66,179.63,30.63747323]
[1752845203998,0.06,179.66,179.64,30.39]
[1752845204300,0.06,179.66,179.65,0.5566379]
[1752845204494,0.06,179.66,179.65,8.28572845]
[1752845204898,0.06,179.66,179.65,13.85210752]
[1752845205200,0.06,179.66,179.65,6.12301697]
[1752845205380,0.06,179.66,179.65,13.22210752]
[1752845205578,1e-08,179.67,179.65,39.85210752]
[1752845205886,1e-08,179.68,179.66,37.48909055]
[1752845206089,1e-08,179.68,179.67,7.65566649]
[1752845206699,0.68000001,179.68,179.67,26.0]
[1752845207009,0.68000001,179.68,179.67,12.66484999]
[1752845208496,1e-08,179.68,179.67,12.66484999]
[1752845212110,1e-08,179.68,179.67,5.56575944]
[1752845212289,0.68000001,179.68,179.66,7.09909055]
[1752845212915,0.68000001,179.68,179.66,12.66490339]
[1752845213204,0.68000001,179.68,179.67,7.09909055]
[1752845213695,1e-08,179.68,179.67,7.09909055]
[1752845215113,1e-08,179.68,179.67,12.66484999]
[1752845216515,1e-08,179.68,179.67,5.56575944]
[1752845216516,0.70000001,179.68,179.67,5.56575944]
[1752845216698,0.70000001,179.68,179.66,12.66506468]
[1752845217212,0.70000001,179.68,179.66,7.09909055]
[1752845217514,0.70000001,179.68,179.65,12.66537616]
[1752845218087,0.70000001,179.68,179.66,7.09909055]
[1752845219005,0.7,179.67,179.66,7.09909055]
[1752845219190,0.7,179.67,179.66,12.66515979]
[1752845220812,1e-08,179.68,179.66,12.66515979]
[1752845220988,1e-08,179.68,179.67,14.8281811]
[1752845221188,0.06,179.7,179.68,5.56544968]
[1752845221394,0.06,179.7,179.69,7.65560454]
[1752845222094,1e-08,179.7,179.69,15.38469509]
[1752845222294,1e-08,179.71,179.69,15.38469509]
[1752845222495,1e-08,179.71,179.7,14.8281811]
[1752845223316,0.06,179.74,179.7,34.30508705]
[1752845223515,0.06,179.74,179.73,7.09909055]
[1752845224525,0.06,179.74,179.73,7.72909055]
[1752845224716,0.06,179.76,179.73,7.72909055]
[1752845224922,0.06,179.76,179.75,7.09909055]
[1752845225219,0.1,179.77,179.75,7.09909055]
[1752845225514,0.1,179.77,179.76,13.84836068]
[1752845225697,0.1,179.77,179.76,6.11927013]
[1752845225900,0.1,179.77,179.76,13.21836068]
[1752845226322,0.1,179.77,179.76,6.11927013]
[1752845226497,0.1,179.77,179.76,12.6620634]
[1752845227819,0.1,179.77,179.76,13.21836068]
[1752845228122,0.06,179.78,179.76,13.84836068]
[1752845228306,0.06,179.78,179.77,36.81909055]
[1752845228707,0.1,179.81,179.77,44.5481811]
[1752845228905,0.1,179.81,179.8,14.1981811]
[1752845229304,0.1,179.81,179.8,15.38435462]
[1752845229917,0.1,179.81,179.8,20.31608988]
[1752845230223,0.8,179.81,179.8,5.56173526]
[1752845230429,0.1,179.81,179.8,12.66082581]
[1752845231912,0.8,179.81,179.8,12.66082581]
[1752845233005,0.1,179.81,179.8,12.66082581]
[1752845234213,0.1,179.81,179.8,19.75991636]
[1752845234418,0.1,179.81,179.8,20.31608988]
[1752845234616,0.1,179.81,179.8,50.66608988]
[1752845234824,0.1,179.81,179.8,50.03608988]
[1752845235131,0.1,179.81,179.8,50.66608988]
[1752845235319,0.1,179.81,179.8,50.03608988]
[1752845235507,0.1,179.81,179.8,42.93699933]
[1752845236008,0.1,179.81,179.8,42.38082581]
[1752845236416,0.8,179.81,179.78,7.09909055]
[1752845236835,0.8,179.81,179.79,7.09909055]
[1752845237135,0.8,179.81,179.8,7.09909055]
[1752845237543,0.8,179.81,179.76,29.7]
[1752845237739,0.8,179.81,179.8,7.09909055]
[1752845237950,0.1,179.81,179.8,7.09909055]
[1752845238447,0.1,179.81,179.8,12.66082581]
[1752845238816,0.1,179.81,179.8,19.75991636]
[1752845239339,0.1,179.81,179.8,20.38991636]
[1752845239542,0.1,179.81,179.8,19.75991636]
[1752845239840,0.1,179.81,179.8,12.66082581]
[1752845240312,0.1,179.81,179.8,5.56173526]
[1752845240519,0.8,179.81,179.8,12.66082581]
[1752845240743,0.1,179.81,179.8,12.66082581]
[1752845241243,0.8,179.81,179.8,12.66082581]
[1752845242756,0.8,179.81,179.77,61.2623639]
[1752845242917,0.8,179.81,179.79,7.09909055]
[1752845243628,0.8,179.81,179.78,7.09909055]
[1752845243825,0.8,179.81,179.77,12.66145445]
[1752845244053,0.8,179.81,179.77,7.09909055]
[1752845245041,15.12594338,179.81,179.76,7.09909055]
[1752845245247,0.67,179.8,179.77,7.09909055]
[1752845245561,1.7653,179.81,179.78,7.09909055]
[1752845245740,0.67,179.79,179.78,7.09909055]
[1752845246556,0.67,179.79,179.77,7.09909055]
[1752845246744,0.67,179.78,179.77,7.09909055]
[1752845247129,0.67,179.78,179.76,7.09909055]
[1752845247329,0.67,179.77,179.76,7.09909055]
[1752845247828,0.67,179.77,179.69,7.858]
[1752845248027,0.67,179.77,179.73,7.09909055]
[1752845248238,0.67,179.77,179.7,35.26483027]
[1752845248445,7.76909055,179.77,179.72,7.09909055]
[1752845248648,47.23030791,179.81,179.73,12.66291733]
[1752845248649,0.67,179.76,179.73,12.66291733]
[1752845249029,12.66149552,179.78,179.73,12.66291733]
[1752845249228,0.67,179.75,179.73,12.66291733]
[1752845249438,12.66149552,179.78,179.73,12.66291733]
[1752845249638,0.67,179.74,179.73,12.66291733]
[1752845249836,0.67,179.74,179.73,7.09909055]
[1752845251577,0.67,179.76,179.73,7.09909055]
[1752845251744,0.67,179.75,179.74,7.09909055]
[1752845252050,7.09909055,179.79,179.74,7.09909055]
[1752845252241,0.67,179.77,179.74,7.09909055]
[1752845252562,0.67,179.76,179.74,7.09909055]
[1752845252733,33.32681182,179.81,179.74,7.09909055]
[1752845252734,0.67,179.8,179.75,7.09909055]
[1752845253056,0.67,179.79,179.78,7.09909055]
[1752845253262,0.77,179.81,179.78,7.09909055]
[1752845253564,0.77,179.81,179.79,7.09909055]
[1752845253727,0.67,179.8,179.79,7.09909055]
[1752845254234,0.1,179.81,179.79,7.09909055]
[1752845254441,0.1,179.81,179.8,7.09909055]
[1752845255757,0.77,179.81,179.8,7.09909055]
[1752845256348,0.77,179.81,179.76,13.90743213]
[1752845256563,0.77,179.81,179.8,7.09909055]
[1752845256564,0.1,179.81,179.8,7.09909055]
[1752845256742,0.1,179.81,179.77,20.65558824]
[1752845256943,0.1,179.81,179.8,7.09909055]
[1752845257553,0.77,179.81,179.8,7.09909055]
[1752845258055,0.1,179.81,179.8,12.66082581]
[1752845259751,0.77,179.81,179.8,12.66082581]
[1752845259943,0.1,179.81,179.8,13.29082581]
[1752845260335,0.06,179.85,179.83,26.0]
[1752845260645,0.06,179.87,179.85,16.78468397]
[1752845260958,1e-08,179.88,179.87,42.78468397]
[1752845261158,30.35,179.98,179.88,24.46598397]
[1752845261363,0.67,179.98,179.97,7.09909055]
[1752845261532,0.1,179.99,179.97,7.09909055]
[1752845261732,0.1,179.99,179.98,7.09909055]
[1752845262240,0.1,179.99,179.98,12.65526345]
[1752845263063,0.1,179.99,179.98,13.28526345]
[1752845264561,0.1,179.99,179.98,42.96526345]
[1752845265176,0.1,179.99,179.98,35.2361729]
[1752845265464,0.1,179.99,179.98,65.57808141]
[1752845265647,0.1,179.99,179.98,66.1336987]
[1752845266662,0.1,179.99,179.98,49.34901473]
[1752845267057,0.1,179.99,179.98,66.1336987]
[1752845268050,0.67,180.08,180.01,26.0]
[1752845268233,0.67,180.08,180.01,55.66]
[1752845268433,0.67,180.08,180.02,5.55493834]
[1752845268862,0.67,180.08,180.05,11.30812454]
[1752845269292,0.67,180.07,180.05,11.30812454]
[1752845269557,0.67,180.06,180.05,11.30812454]
[1752845270355,0.67,180.08,180.05,11.30812454]
[1752845270567,0.67,180.08,180.06,11.30812454]
[1752845270956,0.67,180.08,180.04,5.55427149]
[1752845271367,0.67,180.07,180.03,5.55462978]
[1752845272073,0.67,180.11,180.06,11.30812454]
[1752845272367,0.67,180.13,180.1,11.30812454]
[1752845272558,0.67,180.13,180.12,11.30812454]
[1752845273648,0.67,180.13,180.06,5.55370432]
[1752845273970,0.67,180.13,180.12,11.30812454]
[1752845274471,0.66,180.16,180.12,11.30812454]
[1752845274658,0.66,180.15,180.13,11.30812454]
[1752845274859,0.66,180.14,180.13,11.30812454]
[1752845275056,0.66,180.17,180.13,11.30812454]
[1752845275272,0.66,180.16,180.14,11.30812454]
[1752845275451,36.76417734,180.18,180.14,11.30812454]
[1752845275646,0.66,180.15,180.14,11.30812454]
[1752845276263,0.66,180.15,180.08,0.63]
[1752845276470,0.66,180.15,180.12,11.30812454]
[1752845277155,0.66,180.15,180.11,11.30812454]
[1752845277891,0.66,180.14,180.09,5.5526975]
[1752845278063,26.0,180.18,180.13,11.30812454]
[1752845278263,0.66,180.17,180.14,11.30812454]
[1752845278458,0.66,180.16,180.14,11.30812454]
[1752845278761,0.66,180.16,180.15,11.30812454]
[1752845279667,5.54972822,180.19,180.15,11.30812454]
[1752845279900,0.66,180.18,180.14,11.30812454]
[1752845280065,11.30812454,180.15,180.07,0.63]
[1752845280266,0.66,180.14,180.1,11.30812454]
[1752845280577,0.66,180.2,180.13,11.30812454]
[1752845280771,0.66,180.2,180.13,0.55515461]
[1752845280985,0.66,180.2,180.17,11.30812454]
[1752845281291,0.66,180.19,180.17,11.30812454]
[1752845281478,11.30812454,180.22,180.12,1.18518543]
[1752845281479,11.30812454,180.21,180.14,0.63]
[1752845281691,0.66,180.18,180.12,0.55518543]
[1752845281887,0.66,180.18,180.14,11.30812454]
[1752845282077,0.66,180.17,180.15,11.30812454]
[1752845282395,0.66,180.21,180.16,11.30812454]
[1752845282691,0.66,180.2,180.13,0.63]
[1752845282868,0.66,180.2,180.16,11.30812454]
[1752845283071,11.30812454,180.17,180.07,1.18533959]
[1752845283278,11.96812454,180.16,180.07,0.63]
[1752845283495,29.62,180.2,180.14,11.30812454]
[1752845283673,0.66,180.21,180.17,11.30812454]
[1752845283879,0.66,180.21,180.13,0.63]
[1752845283880,0.66,180.21,180.13,1.18515461]
[1752845284093,0.06,180.22,180.2,11.30812454]
[1752845284380,0.06,180.22,180.21,11.93812454]
[1752845284972,0.06,180.22,180.21,12.4930327]
[1752845285189,1.5709,180.33,180.24,26.0]
[1752845285358,0.66,180.32,180.3,11.30812454]
[1752845285567,0.66,180.34,180.31,11.30812454]
[1752845285792,1.613,180.37,180.33,11.30812454]
[1752845285793,0.76,180.37,180.33,11.30812454]
[1752845285993,0.1,180.37,180.31,0.63]
[1752845286164,0.66,180.36,180.29,5.54650455]
[1752845286362,0.66,180.36,180.31,11.30812454]
[1752845286565,11.30812454,180.35,180.3,11.30812454]
[1752845286792,0.66,180.34,180.29,11.30812454]
[1752845286975,0.66,180.34,180.29,7.04652252]
[1752845287167,0.66,180.33,180.27,26.0]
[1752845287365,0.66,180.33,180.32,7.04652252]
[1752845287688,6.20544467,180.33,180.26,29.62]
[1752845287890,26.66,180.32,180.21,16.78468397]
[1752845288094,7.04652252,180.27,180.22,7.04652252]
[1752845288276,0.66,180.26,180.22,7.04652252]
[1752845288466,0.66,180.26,180.21,5.54908162]
[1752845288667,0.66,180.26,180.2,6.0998]
[1752845288971,0.66,180.26,180.23,11.28285005]
[1752845289176,0.66,180.26,180.2,6.0998]
[1752845289475,0.66,180.28,180.24,11.28285005]
[1752845289676,5.54663758,180.29,180.2,6.7298]
[1752845289677,0.66,180.27,180.21,5.54908162]
[1752845289878,11.28285005,180.26,180.22,11.28285005]
[1752845290073,11.28285005,180.26,180.21,5.54908162]
[1752845290074,11.28285005,180.26,180.2,11.64914514]
[1752845290264,0.66,180.25,180.21,11.28285005]
[1752845290464,11.28285005,180.26,180.19,5.54967242]
[1752845290669,11.94285005,180.24,180.18,5.54994418]
[1752845290894,11.28285005,180.23,180.18,16.83279423]
[1752845291105,16.78468397,180.28,180.21,11.28285005]
[1752845291388,11.94285005,180.28,180.23,11.28285005]
[1752845291574,0.66,180.27,180.21,5.54895182]
[1752845291771,11.94285005,180.27,180.22,11.28285005]
[1752845291981,11.94285005,180.26,180.17,34.6283784]
[1752845292165,11.28285005,180.24,180.19,11.28285005]
[1752845292367,0.66,180.24,180.2,11.28285005]
[1752845293093,0.66,180.24,180.21,11.28285005]
[1752845293996,29.6,180.27,180.23,11.28285005]
[1752845294286,30.26,180.27,180.23,11.28285005]
[1752845294485,0.66,180.26,180.23,11.28285005]
[1752845295370,30.26,180.29,180.21,32.17908162]
[1752845295584,41.54285005,180.29,180.24,11.28285005]
[1752845295792,0.66,180.28,180.24,11.28285005]
[1752845295971,0.66,180.27,180.24,11.28285005]
[1752845296173,11.94285005,180.26,180.22,11.28285005]
[1752845296374,11.28285005,180.28,180.23,11.28285005]
[1752845296572,11.94285005,180.28,180.23,11.28285005]
[1752845296786,0.66,180.27,180.23,11.28285005]
[1752845296981,0.66,180.26,180.23,11.28285005]
[1752845297168,0.66,180.25,180.22,11.28285005]
[1752845297570,0.66,180.24,180.2,37.28285005]
[1752845297880,0.66,180.23,180.2,37.28285005]
[1752845298074,0.66,180.23,180.2,26.0]
[1752845298283,0.66,180.22,180.19,11.28285005]
[1752845298472,11.94285005,180.25,180.2,11.28285005]
[1752845298672,11.94285005,180.24,180.19,11.28285005]
[1752845298886,0.66,180.24,180.2,11.28285005]
[1752845299080,16.83079692,180.25,180.2,11.28285005]
[1752845299399,0.66,180.24,180.2,11.28285005]
[1752845299770,0.66,180.24,180.21,11.28285005]
[1752845299965,6.20731793,180.27,180.22,11.28285005]
[1752845300264,11.94285005,180.26,180.21,11.28285005]
[1752845300576,0.66,180.25,180.22,11.28285005]
[1752845300974,0.66,180.25,180.2,5.54938956]
[1752845301278,29.6,180.29,180.24,11.28285005]
[1752845301279,0.66,180.28,180.24,11.28285005]
[1752845301470,0.16,180.28,180.24,11.28285005]
[1752845301790,11.28285005,180.25,180.2,37.28285005]
[1752845302167,11.28285005,180.23,180.18,16.83277464]
[1752845302372,11.28285005,180.24,180.19,11.28285005]
[1752845302682,11.28285005,180.22,180.17,34.6283784]
[1752845302883,11.28285005,180.22,180.17,45.91122845]
[1752845303204,11.28285005,180.23,180.18,11.28285005]
[1752845303366,11.94285005,180.23,180.19,11.28285005]
[1752845303891,0.66,180.23,180.2,11.28285005]
[1752845304200,0.7,180.22,180.18,11.28285005]
[1752845304496,0.7,180.21,180.17,51.46153937]
[1752845304693,11.28285005,180.23,180.18,11.28285005]
[1752845304886,0.7,180.23,180.19,11.28285005]
[1752845305194,17.5313735,180.23,180.18,11.95285005]
[1752845305392,0.7,180.22,180.18,11.95285005]
[1752845305600,40.90285005,180.24,180.19,11.28285005]
[1752845305794,46.45105117,180.24,180.19,11.28285005]
[1752845305971,11.98285005,180.23,180.18,11.28285005]
[1752845306168,0.7,180.22,180.18,11.28285005]
[1752845306483,0.7,180.22,180.17,40.17868932]
[1752845306484,0.7,180.21,180.17,51.46153937]
[1752845306797,35.16820112,180.24,180.18,11.28285005]
[1752845306798,11.98285005,180.23,180.18,11.28285005]
[1752845307090,11.98285005,180.23,180.18,11.95285005]
[1752845307291,0.7,180.23,180.19,11.28285005]
[1752845307602,40.90285005,180.24,180.19,11.95285005]
[1752845307893,41.60285005,180.24,180.19,11.95285005]
[1752845308675,41.60285005,180.24,180.19,17.50236296]
[1752845309069,30.32,180.24,180.2,11.28285005]
[1752845309292,30.32,180.24,180.2,11.95285005]
[1752845309293,29.62,180.24,180.2,11.95285005]
[1752845309489,29.62,180.24,180.21,11.28285005]
[1752845309687,29.62,180.24,180.2,11.95285005]
[1752845309888,29.62,180.24,180.21,11.28285005]
[1752845310074,29.62,180.24,180.21,0.67]
[1752845310276,29.62,180.24,180.21,11.28285005]
[1752845310584,30.32,180.24,180.2,11.28285005]
[1752845310902,0.7,180.23,180.2,11.28285005]
[1752845311086,42.22229255,180.24,180.19,7.08409822]
[1752845311388,42.22229255,180.24,180.19,12.63372299]
[1752845311389,37.37409822,180.24,180.19,12.63372299]
[1752845311586,37.37409822,180.24,180.19,13.30372299]
[1752845311788,30.32,180.24,180.2,7.05409822]
[1752845312172,37.37409822,180.24,180.19,6.24962477]
[1752845312369,7.05409822,180.22,180.19,0.03]
[1752845312694,0.7,180.23,180.19,0.03]
[1752845312695,7.05409822,180.2,180.19,0.03]
[1752845312900,42.20348778,180.2,180.19,0.03]
[1752845313400,30.3,180.2,180.19,0.03]
[1752845313588,37.35409822,180.2,180.19,0.03]
[1752845313788,30.3,180.2,180.19,0.03]
[1752845314080,29.6,180.2,180.19,0.03]
[1752845314684,29.6,180.23,180.19,12.63379576]
[1752845314991,30.3,180.23,180.19,16.86715827]
[1752845315370,0.7,180.22,180.19,0.03]
[1752845315571,11.28746073,180.2,180.19,0.03]
[1752845316007,41.58746073,180.2,180.19,0.03]
[1752845316709,30.3,180.2,180.19,0.03]
[1752845317473,41.58746073,180.2,180.19,0.03]
[1752845317901,47.13685029,180.2,180.19,0.03]
[1752845318106,42.78468397,180.18,180.17,34.6283784]
[1752845318399,26.7,180.18,180.17,34.6283784]
[1752845318590,67.58746073,180.18,180.17,34.6283784]
[1752845318798,89.92215025,180.18,180.17,34.6283784]
[1752845319487,11.98746073,180.18,180.17,34.6283784]
[1752845319687,29.6,180.18,180.17,34.6283784]
[1752845319896,11.98746073,180.2,180.17,34.6283784]
[1752845320095,29.6,180.19,180.17,34.6283784]
[1752845320827,11.28746073,180.22,180.17,51.46607299]
[1752845320983,29.6,180.2,180.17,51.46607299]
[1752845321816,29.6,180.2,180.17,40.17861226]
[1752845321984,30.3,180.2,180.17,40.17861226]
[1752845322186,30.3,180.2,180.17,51.46607299]
[1752845322390,29.6,180.2,180.17,51.46607299]
[1752845322591,0.7,180.24,180.19,11.28746073]
[1752845322896,29.6,180.22,180.21,11.28746073]
[1752845323094,29.6,180.22,180.19,0.67]
[1752845323095,29.6,180.22,180.2,11.28746073]
[1752845323311,0.7,180.24,180.2,11.28746073]
[1752845323912,0.7,180.24,180.2,16.83680667]
[1752845324211,0.7,180.23,180.19,5.54964693]
[1752845324389,0.7,180.23,180.19,16.83710766]
[1752845324583,29.6,180.25,180.19,16.83710766]
[1752845324584,29.6,180.25,180.21,11.28746073]
[1752845324999,0.7,180.24,180.2,11.28746073]
[1752845325311,0.7,180.24,180.19,5.54964693]
[1752845325312,0.7,180.23,180.19,16.83710766]
[1752845325510,0.7,180.22,180.19,16.83710766]
[1752845325717,30.3,180.22,180.19,16.83710766]
[1752845326008,29.6,180.22,180.2,11.28746073]
[1752845326215,0.7,180.22,180.19,16.83710766]
[1752845326393,29.6,180.24,180.2,11.28746073]
[1752845326602,29.6,180.24,180.2,11.95746073]
[1752845326808,29.6,180.24,180.22,11.28746073]
[1752845327099,29.6,180.26,180.23,11.28746073]
[1752845327300,30.3,180.26,180.22,11.28746073]
[1752845327814,11.98746073,180.25,180.19,5.54964693]
[1752845328025,11.98746073,180.25,180.2,16.83672729]
[1752845328026,0.7,180.24,180.2,16.83672729]
[1752845328211,0.7,180.23,180.2,5.54926656]
[1752845328515,0.7,180.25,180.2,16.83672729]
[1752845328810,0.7,180.24,180.2,16.83672729]
[1752845329014,30.3,180.24,180.21,11.28746073]
[1752845329193,29.6,180.24,180.22,11.28746073]
[1752845329395,29.6,180.24,180.22,16.83594595]
[1752845331695,29.6,180.24,180.23,11.28746073]
[1752845332315,30.3,180.27,180.23,11.28746073]
[1752845332614,30.3,180.27,180.24,11.28746073]
[1752845333389,30.3,180.27,180.23,11.28746073]
[1752845333608,0.06,180.24,180.23,5.54834792]
[1752845334026,0.75,180.24,180.21,11.28746073]
[1752845334196,41.63746073,180.24,180.19,0.03]
[1752845334515,0.69,180.23,180.19,16.86710908]
[1752845334692,0.69,180.22,180.19,16.86710908]
[1752845335401,29.66,180.24,180.2,11.28746073]
[1752845335601,0.06,180.24,180.23,11.28746073]
[1752845337187,0.06,180.24,180.21,6.21908162]
[1752845337388,0.06,180.24,180.23,11.28746073]
[1752845337605,0.06,180.24,180.23,16.83592657]
[1752845338318,0.06,180.24,180.23,17.50592657]
[1752845338894,0.75,180.24,180.22,16.83614088]
[1752845339103,0.06,180.24,180.22,5.54868015]